fUST/lending_fUST_20240906
["ID","MTS","AMOUNT","RATE_DAILY","PERIOD"]
[337392184,1725637224051,-807.79,0.00021643,2]
[337392185,1725637224112,-151.0,0.00021643,2]
[337392186,1725637224173,-151.0,0.00021643,2]
[337392187,1725637224240,-809.63,0.00021643,2]
[337392188,1725637224304,-500.0,0.00021643,2]
[337392189,1725637224369,-500.0,0.00021643,2]
[337392190,1725637224433,-500.0,0.00021643,2]
[337392191,1725637224511,-500.0,0.00021643,2]
[337392192,1725637224577,-500.0,0.00021643,2]
[337392193,1725637224644,-500.0,0.00021643,2]
[337392194,1725637224717,-1385.18,0.00021643,2]
[337392195,1725637224779,-904.75,0.00021643,2]
[337392196,1725637224841,-886.52,0.00021643,2]
[337392197,1725637224908,-500.0,0.00021643,2]
[337392198,1725637224972,-151.0,0.00021643,2]
[337392199,1725637225042,-500.0,0.00021643,2]
[337392200,1725637225107,-822.77,0.00021643,2]
[337392201,1725637225173,-945.5,0.00021643,2]
[337392202,1725637225245,-1199.51,0.00021643,2]
[337392203,1725637225312,-500.0,0.00021643,2]
[337392204,1725637225379,-1000.0,0.00021643,2]
[337392205,1725637225449,-500.0,0.00021643,2]
[337392206,1725637225516,-500.0,0.00021643,2]
[337392207,1725637225588,-1148.45,0.00021643,2]
[337392208,1725637225656,-500.0,0.00021643,2]
[337392209,1725637225723,-500.0,0.00021643,2]
[337392210,1725637225790,-500.0,0.00021643,2]
[337392211,1725637225857,-1115.09,0.00021643,2]
[337392212,1725637225925,-243.5104728,0.00021643,2]
[337392213,1725637225992,-450.28891462,0.00021643,2]
[337392214,1725637226055,-819.23,0.00021643,2]
[337392215,1725637226120,-500.0,0.00021643,2]
[337392216,1725637226184,-576.75961156,0.00021643,2]
[337392217,1725637226250,-500.0,0.00021643,2]
[337392218,1725637226314,-500.0,0.00021643,2]
[337392219,1725637226375,-1344.78,0.00021643,2]
[337392220,1725637226437,-598.52,0.00021643,2]
[337392221,1725637226498,-500.0,0.00021643,2]
[337392222,1725637226560,-974.11,0.00021643,2]
[337392223,1725637226621,-590.0,0.00021643,2]
[337392224,1725637226686,-500.0,0.00021643,2]
[337392225,1725637226749,-500.0,0.00021643,2]
[337392226,1725637226814,-789.17,0.00021643,2]
[337392227,1725637226884,-1665.05,0.00021643,2]
[337392228,1725637226954,-500.0,0.00021643,2]
[337392229,1725637227023,-500.0,0.00021643,2]
[337392230,1725637227089,-500.0,0.00021643,2]
[337392231,1725637227155,-475.05819742,0.00021643,2]
[337392232,1725637227222,-500.0,0.00021643,2]
[337392233,1725637227292,-1000.15,0.00021643,2]
[337392234,1725637227357,-500.0,0.00021643,2]
[337392235,1725637227429,-500.0,0.00021643,2]
[337392236,1725637227508,-650.96,0.00021643,2]
[337392237,1725637227579,-500.0,0.00021643,2]
[337392238,1725637227650,-1511.74,0.00021643,2]
[337392239,1725637227724,-500.0,0.00021643,2]
[337392240,1725637227797,-658.64,0.00021643,2]
[337392241,1725637227868,-500.0,0.00021643,2]
[337392242,1725637227936,-573.62,0.00021643,2]
[337392243,1725637228008,-500.0,0.00021643,2]
[337392244,1725637228076,-500.0,0.00021643,2]
[337392245,1725637228144,-151.0,0.00021643,2]
[337392246,1725637228214,-500.0,0.00021643,2]
[337392247,1725637228282,-1501.9,0.00021643,2]
[337392248,1725637228352,-500.0,0.00021643,2]
[337392249,1725637228420,-1065.07,0.00021643,2]
[337392250,1725637228492,-1054.4,0.00021643,2]
[337392251,1725637228558,-954.725903,0.00021643,2]
[337392252,1725637228623,-954.725903,0.00021643,2]
[337392253,1725637228693,-791.87,0.00021643,2]
[337392254,1725637228759,-745.45,0.00021643,2]
[337392256,1725637228834,-1110.03,0.00021643,2]
[337392257,1725637228898,-894.41,0.00021643,2]
[337392258,1725637228961,-445.99,0.00021643,2]
[337392259,1725637229023,-911.93,0.00021643,2]
[337392260,1725637229086,-668.19,0.00021643,2]
[337392261,1725637229149,-979.54,0.00021643,2]
[337392262,1725637229218,-500.0,0.00021643,2]
[337392263,1725637229280,-956.18,0.00021643,2]
[337392264,1725637229343,-500.0,0.00021643,2]
[337392265,1725637229403,-500.0,0.00021643,2]
[337392266,1725637229464,-500.0,0.00021643,2]
[337392267,1725637229523,-20123.32,0.00021643,2]
[337392268,1725637229585,-531.03,0.00021643,2]
[337392269,1725637229647,-1029.44,0.00021643,2]
[337392270,1725637229717,-873.02,0.00021643,2]
[337392271,1725637229784,-1677.69,0.00021643,2]
[337392272,1725637229849,-49982.75,0.00021643,2]
[337392273,1725637229915,-247.531318,0.00021643,2]
[337392274,1725637229985,-1686.36,0.00021643,2]
[337392275,1725637230054,-151.0,0.00021643,2]
[337392276,1725637230121,-551.1,0.00021643,2]
[337392277,1725637230184,-247.531318,0.00021643,2]
[337392278,1725637230253,-1794.93,0.00021643,2]
[337392280,1725637230315,-1114.86,0.00021643,2]
[337392281,1725637230378,-1225.23,0.00021643,2]
[337392282,1725637230439,-151.0,0.00021643,2]
[337392283,1725637230506,-500.0,0.00021643,2]
[337392284,1725637230567,-500.0,0.00021643,2]
[337392285,1725637230630,-1436.9,0.00021643,2]
[337392286,1725637230699,-1006.68,0.00021643,2]
[337392287,1725637230766,-2270.59,0.00021643,2]
[337392288,1725637230828,-185.898427,0.00021643,2]
[337392289,1725637230890,-1333.99,0.00021643,2]
[337392290,1725637230951,-997.25,0.00021643,2]
[337392291,1725637231185,-500.0,0.00021643,2]
[337392292,1725637231250,-185.898427,0.00021643,2]
[337392293,1725637231314,-1406.88,0.00021643,2]
[337392294,1725637231371,-605.1,0.00021643,2]
[337392295,1725637231431,-500.0,0.00021643,2]
[337392296,1725637231493,-500.0,0.00021643,2]
[337392297,1725637231553,-1033.11,0.00021643,2]
[337392298,1725637231612,-2150.27,0.00021643,2]
[337392299,1725637231673,-1945.45,0.00021643,2]
[337392300,1725637231736,-525.23,0.00021643,2]
[337392301,1725637231798,-1874.8,0.00021643,2]
[337392302,1725637231859,-500.0,0.00021643,2]
[337392303,1725637231924,-3184.66,0.00021643,2]
[337392304,1725637231988,-1694.67,0.00021643,2]
[337392305,1725637232053,-787.42,0.00021643,2]
[337392306,1725637232115,-1297.52507,0.00021643,2]
[337392307,1725637232175,-826.3,0.00021643,2]
[337392308,1725637232236,-1297.52507,0.00021643,2]
[337392309,1725637232296,-793.09,0.00021643,2]
[337392310,1725637232357,-909.42,0.00021643,2]
[337392311,1725637232420,-1317.33,0.00021643,2]
[337392312,1725637232482,-1644.73,0.00021643,2]
[337392313,1725637232544,-1358.61,0.00021643,2]
[337392314,1725637232604,-579.63,0.00021643,2]
[337392315,1725637232670,-236.75666392,0.00021643,2]
[337392316,1725637232733,-500.0,0.00021643,2]
[337392317,1725637232797,-151.0,0.00021643,2]
[337392318,1725637232863,-500.0,0.00021643,2]
[337392319,1725637232928,-1027.81,0.00021643,2]
[337392320,1725637232996,-621.29,0.00021643,2]
[337392321,1725637233064,-651.73,0.00021643,2]
[337392322,1725637233128,-527.84,0.00021643,2]
[337392323,1725637233193,-559.750586,0.00021643,2]
[337392324,1725637233261,-1763.06,0.00021643,2]
[337392325,1725637233326,-887.46,0.00021643,2]
[337392326,1725637233393,-500.0,0.00021643,2]
[337392327,1725637233462,-559.750586,0.00021643,2]
[337392328,1725637233531,-1024.82,0.00021643,2]
[337392329,1725637233601,-1861.820439,0.00021643,2]
[337392330,1725637233669,-503.36,0.00021643,2]
[337392331,1725637233741,-151.0,0.00021643,2]
[337392332,1725637233808,-1861.820439,0.00021643,2]
[337392333,1725637233878,-151.0,0.00021643,2]
[337392334,1725637233950,-590.03,0.00021643,2]
[337392335,1725637234020,-708.38,0.00021643,2]
[337392336,1725637234092,-2392.21,0.00021643,2]
[337392337,1725637234164,-500.0,0.00021643,2]
[337392338,1725637234233,-597.14,0.00021643,2]
[337392339,1725637234298,-529.29,0.00021643,2]
[337392340,1725637234362,-709.35,0.00021643,2]
[337392341,1725637234425,-722.337951,0.00021643,2]
[337392342,1725637234488,-1771.65,0.00021643,2]
[337392343,1725637234553,-500.0,0.00021643,2]
[337392344,1725637234615,-1886.71,0.00021643,2]
[337392345,1725637234679,-722.337951,0.00021643,2]
[337392346,1725637234751,-1497.7,0.00021643,2]
[337392347,1725637234815,-151.0,0.00021643,2]
[337392348,1725637234881,-500.0,0.00021643,2]
[337392349,1725637234947,-500.0,0.00021643,2]
[337392350,1725637235012,-500.0,0.00021643,2]
[337392351,1725637235080,-6237.69,0.00021643,2]
[337392352,1725637235144,-998.66029,0.00021643,2]
[337392353,1725637235208,-51565.56,0.00021643,2]
[337392354,1725637235271,-998.66029,0.00021643,2]
[337392355,1725637235336,-1073.24,0.00021643,2]
[337392356,1725637235399,-1705.58,0.00021643,2]
[337392357,1725637235466,-907.97,0.00021643,2]
[337392358,1725637235528,-895.056479,0.00021643,2]
[337392359,1725637235594,-500.0,0.00021643,2]
[337392360,1725637235661,-895.056479,0.00021643,2]
[337392361,1725637235725,-1508.74,0.00021643,2]
[337392362,1725637235792,-990.33,0.00021643,2]
[337392363,1725637235856,-500.0,0.00021643,2]
[337392364,1725637235924,-1638.19,0.00021643,2]
[337392365,1725637235991,-500.0,0.00021643,2]
[337392366,1725637236055,-500.0,0.00021643,2]
[337392367,1725637236120,-151.0,0.00021643,2]
[337392368,1725637236186,-749.89,0.00021643,2]
[337392369,1725637236259,-500.0,0.00021643,2]
[337392371,1725637236337,-500.0,0.00021643,2]
[337392372,1725637236400,-1588.35,0.00021643,2]
[337392373,1725637236461,-814.51,0.00021643,2]
[337392374,1725637236528,-680.85,0.00021643,2]
[337392375,1725637236596,-39993.96,0.00021643,2]
[337392376,1725637236661,-1000.0,0.00021646,2]
[337392377,1725637236728,-1000.0,0.0002166,2]
[337392378,1725637236793,-1000.0,0.00021672,2]
[337392379,1725637236859,-1000.0,0.00021676,2]
[337392380,1725637236925,-1000.0,0.00021682,2]
[337392381,1725637236991,-1000.0,0.00021698,2]
[337392382,1725637237058,-160.648832,0.0002172,2]
[337392383,1725637237121,-1000.0,0.00021747,2]
[337392384,1725637237186,-1000.0,0.00021757,2]
[337392385,1725637237253,-300.0,0.00021759,2]
[337392386,1725637237322,-1000.0,0.00021773,2]
[337392387,1725637237386,-1000.0,0.00021788,2]
[337392388,1725637237453,-2000.0,0.000218,2]
[337392389,1725637237522,-1189.249557,0.00021805,2]
[337392390,1725637237591,-5000.0,0.00021842,2]
[337392391,1725637237662,-515.0,0.000219,2]
[337392392,1725637237733,-2000.0,0.000219,2]
[337392393,1725637237807,-100768.9435081,0.00021916,2]
[337392394,1725637237880,-151.0,0.00021916,2]
[337392395,1725637237954,-500.0,0.00021917,2]
[337392396,1725637238024,-500.0,0.00021917,2]
[337392397,1725637238097,-839.2,0.00021917,2]
[337392398,1725637238167,-171.077844,0.00021917,2]
[337392399,1725637238233,-500.0,0.00021917,2]
[337392400,1725637238305,-919.19,0.00021917,2]
[337392401,1725637238375,-500.0,0.00021917,2]
[337392402,1725637238447,-500.0,0.00021917,2]
[337392403,1725637238516,-151.0,0.00021917,2]
[337392404,1725637238582,-500.0,0.00021917,2]
[337392405,1725637238646,-155.734304,0.00021917,2]
[337392406,1725637238715,-500.0,0.00021917,2]
[337392407,1725637238781,-500.0,0.00021917,2]
[337392408,1725637238848,-410.71429484,0.00021917,2]
[337392409,1725637238911,-500.0,0.00021917,2]
[337392410,1725637238973,-151.0,0.00021917,2]
[337392411,1725637239038,-151.0,0.00021917,2]
[337392412,1725637239102,-151.0,0.00021917,2]
[337392413,1725637239166,-807.79,0.00021917,2]
[337392414,1725637239231,-151.0,0.00021917,2]
[337392415,1725637239295,-151.0,0.00021917,2]
[337392416,1725637239356,-809.63,0.00021917,2]
[337392417,1725637239417,-500.0,0.00021917,2]
[337392418,1725637239477,-153.00993693,0.00021917,2]
[337392419,1725637239539,-500.0,0.00021917,2]
[337392420,1725637239602,-500.0,0.00021917,2]
[337392421,1725637239667,-514.40347454,0.00021917,2]
[337392422,1725637239735,-500.0,0.00021917,2]
[337392423,1725637239801,-1385.18,0.00021917,2]
[337392424,1725637240037,-904.75,0.00021917,2]
[337392425,1725637240109,-886.52,0.00021917,2]
[337392426,1725637240178,-159.96772771,0.00021917,2]
[337392427,1725637240255,-500.0,0.00021917,2]
[337392428,1725637240324,-822.77,0.00021917,2]
[337392429,1725637240393,-945.5,0.00021917,2]
[337392430,1725637240459,-1199.51,0.00021917,2]
[337392431,1725637240526,-500.0,0.00021917,2]
[337392432,1725637240595,-500.0,0.00021917,2]
[337392433,1725637240662,-500.0,0.00021917,2]
[337392434,1725637240726,-1148.45,0.00021917,2]
[337392435,1725637240790,-500.0,0.00021917,2]
[337392436,1725637240853,-500.0,0.00021917,2]
[337392437,1725637240914,-500.0,0.00021917,2]
[337392438,1725637240975,-1115.09,0.00021917,2]
[337392439,1725637241048,-819.23,0.00021917,2]
[337392441,1725637241109,-500.0,0.00021917,2]
[337392442,1725637241178,-500.0,0.00021917,2]
[337392443,1725637241239,-500.0,0.00021917,2]
[337392444,1725637241305,-1344.78,0.00021917,2]
[337392445,1725637241366,-598.52,0.00021917,2]
[337392446,1725637241426,-500.0,0.00021917,2]
[337392447,1725637241484,-974.11,0.00021917,2]
[337392448,1725637241543,-500.0,0.00021917,2]
[337392449,1725637241601,-396.54321807,0.00021917,2]
[337392450,1725637241661,-590.0,0.00021917,2]
[337392451,1725637241726,-500.0,0.00021917,2]
[337392452,1725637241789,-500.0,0.00021917,2]
[337392453,1725637241851,-789.17,0.00021917,2]
[337392454,1725637241915,-1665.05,0.00021917,2]
[337392455,1725637241975,-500.0,0.00021917,2]
[337392456,1725637242039,-500.0,0.00021917,2]
[337392457,1725637242101,-500.0,0.00021917,2]
[337392458,1725637242164,-500.0,0.00021917,2]
[337392459,1725637242226,-1000.15,0.00021917,2]
[337392460,1725637242293,-500.0,0.00021917,2]
[337392461,1725637242358,-500.0,0.00021917,2]
[337392462,1725637242424,-650.96,0.00021917,2]
[337392463,1725637242488,-500.0,0.00021917,2]
[337392464,1725637242554,-1511.74,0.00021917,2]
[337392465,1725637242616,-500.0,0.00021917,2]
[337392466,1725637242682,-658.64,0.00021917,2]
[337392467,1725637242754,-500.0,0.00021917,2]
[337392468,1725637242825,-573.62,0.00021917,2]
[337392469,1725637242892,-500.0,0.00021917,2]
[337392470,1725637242960,-500.0,0.00021917,2]
[337392471,1725637243026,-500.0,0.00021917,2]
[337392472,1725637243092,-1501.9,0.00021917,2]
[337392473,1725637243158,-500.0,0.00021917,2]
[337392474,1725637243228,-1065.07,0.00021917,2]
[337392475,1725637243304,-1054.4,0.00021917,2]
[337392476,1725637243379,-791.87,0.00021917,2]
[337392478,1725637243445,-745.45,0.00021917,2]
[337392479,1725637243512,-1110.03,0.00021917,2]
[337392480,1725637243578,-894.41,0.00021917,2]
[337392481,1725637243642,-911.93,0.00021917,2]
[337392482,1725637243712,-668.19,0.00021917,2]
[337392483,1725637243779,-979.54,0.00021917,2]
[337392484,1725637243843,-500.0,0.00021917,2]
[337392485,1725637243908,-956.18,0.00021917,2]
[337392486,1725637243974,-165.80341251,0.00021917,2]
[337392487,1725637244042,-500.0,0.00021917,2]
[337392488,1725637244105,-500.0,0.00021917,2]
[337392489,1725637244173,-20123.32,0.00021917,2]
[337392490,1725637244237,-531.03,0.00021917,2]
[337392491,1725637244301,-1029.44,0.00021917,2]
[337392492,1725637244362,-873.02,0.00021917,2]
[337392493,1725637244423,-1677.69,0.00021917,2]
[337392494,1725637244487,-49982.75,0.00021917,2]
[337392495,1725637244547,-247.531318,0.00021917,2]
[337392496,1725637244610,-1686.36,0.00021917,2]
[337392497,1725637244674,-151.0,0.00021917,2]
[337392498,1725637244736,-551.1,0.00021917,2]
[337392499,1725637244801,-247.531318,0.00021917,2]
[337392500,1725637244870,-1794.93,0.00021917,2]
[337392501,1725637244932,-1114.86,0.00021917,2]
[337392502,1725637245001,-1225.23,0.00021917,2]
[337392503,1725637245065,-151.0,0.00021917,2]
[337392504,1725637245128,-500.0,0.00021917,2]
[337392505,1725637245200,-500.0,0.00021917,2]
[337392506,1725637245261,-1436.9,0.00021917,2]
[337392507,1725637245323,-1006.68,0.00021917,2]
[337392508,1725637245388,-2270.59,0.00021917,2]
[337392509,1725637245455,-185.898427,0.00021917,2]
[337392510,1725637245516,-1333.99,0.00021917,2]
[337392511,1725637245576,-997.25,0.00021917,2]
[337392512,1725637245636,-500.0,0.00021917,2]
[337392513,1725637245699,-185.898427,0.00021917,2]
[337392514,1725637245761,-1406.88,0.00021917,2]
[337392515,1725637245822,-605.1,0.00021917,2]
[337392516,1725637245885,-500.0,0.00021917,2]
[337392517,1725637245949,-500.0,0.00021917,2]
[337392518,1725637246012,-1033.11,0.00021917,2]
[337392519,1725637246077,-2150.27,0.00021917,2]
[337392520,1725637246139,-1945.45,0.00021917,2]
[337392521,1725637246204,-525.23,0.00021917,2]
[337392522,1725637246265,-1874.8,0.00021917,2]
[337392523,1725637246328,-500.0,0.00021917,2]
[337392525,1725637246402,-3184.66,0.00021917,2]
[337392526,1725637246463,-1694.67,0.00021917,2]
[337392527,1725637246521,-787.42,0.00021917,2]
[337392528,1725637246584,-1297.52507,0.00021917,2]
[337392529,1725637246657,-826.3,0.00021917,2]
[337392531,1725637246720,-1297.52507,0.00021917,2]
[337392532,1725637246783,-793.09,0.00021917,2]
[337392533,1725637246846,-909.42,0.00021917,2]
[337392534,1725637246907,-1317.33,0.00021917,2]
[337392535,1725637246982,-1644.73,0.00021917,2]
[337392537,1725637247043,-1358.61,0.00021917,2]
[337392538,1725637247106,-579.63,0.00021917,2]
[337392539,1725637247171,-500.0,0.00021917,2]
[337392540,1725637247236,-151.0,0.00021917,2]
[337392542,1725637247311,-500.0,0.00021917,2]
[337392544,1725637247384,-1027.81,0.00021917,2]
[337392545,1725637247457,-621.29,0.00021917,2]
[337392546,1725637247528,-651.73,0.00021917,2]
[337392548,1725637247610,-527.84,0.00021917,2]
[337392549,1725637247681,-559.750586,0.00021917,2]
[337392550,1725637247753,-1763.06,0.00021917,2]
[337392551,1725637247825,-887.46,0.00021917,2]
[337392553,1725637247903,-271.22484128,0.00021917,2]
[337392554,1725637247975,-559.750586,0.00021917,2]
[337392555,1725637248046,-1024.82,0.00021917,2]
[337392556,1725637248115,-1861.820439,0.00021917,2]
[337392557,1725637248184,-503.36,0.00021917,2]
[337392559,1725637248259,-1861.820439,0.00021917,2]
[337392560,1725637248325,-151.0,0.00021917,2]
[337392561,1725637248392,-590.03,0.00021917,2]
[337392562,1725637248458,-708.38,0.00021917,2]
[337392563,1725637248522,-2392.21,0.00021917,2]
[337392564,1725637248585,-500.0,0.00021917,2]
[337392565,1725637248821,-597.14,0.00021917,2]
[337392566,1725637248885,-529.29,0.00021917,2]
[337392567,1725637248946,-709.35,0.00021917,2]
[337392568,1725637249017,-722.337951,0.00021917,2]
[337392569,1725637249079,-1771.65,0.00021917,2]
[337392570,1725637249140,-500.0,0.00021917,2]
[337392571,1725637249204,-1886.71,0.00021917,2]
[337392572,1725637249267,-722.337951,0.00021917,2]
[337392573,1725637249329,-1497.7,0.00021917,2]
[337392574,1725637249389,-151.0,0.00021917,2]
[337392575,1725637249454,-500.0,0.00021917,2]
[337392576,1725637249517,-500.0,0.00021917,2]
[337392577,1725637249583,-500.0,0.00021917,2]
[337392578,1725637249651,-6237.69,0.00021917,2]
[337392579,1725637249718,-998.66029,0.00021917,2]
[337392580,1725637249787,-51565.56,0.00021917,2]
[337392581,1725637249853,-998.66029,0.00021917,2]
[337392582,1725637249922,-1073.24,0.00021917,2]
[337392583,1725637249989,-1705.58,0.00021917,2]
[337392584,1725637250055,-907.97,0.00021917,2]
[337392586,1725637250129,-895.056479,0.00021917,2]
[337392588,1725637250208,-500.0,0.00021917,2]
[337392589,1725637250282,-895.056479,0.00021917,2]
[337392590,1725637250352,-1508.74,0.00021917,2]
[337392592,1725637250425,-990.33,0.00021917,2]
[337392593,1725637250489,-500.0,0.00021917,2]
[337392594,1725637250553,-1638.19,0.00021917,2]
[337392595,1725637250620,-500.0,0.00021917,2]
[337392596,1725637250687,-500.0,0.00021917,2]
[337392597,1725637250769,-151.0,0.00021917,2]
[337392599,1725637250839,-749.89,0.00021917,2]
[337392601,1725637250917,-1000.0,0.00021917,2]
[337392602,1725637250984,-500.0,0.00021917,2]
[337392603,1725637251051,-1000.0,0.00021917,2]
[337392604,1725637251113,-1000.0,0.00021917,2]
[337392605,1725637251190,-1000.0,0.00021917,2]
[337392607,1725637251258,-1000.0,0.00021917,2]
[337392608,1725637251319,-1000.0,0.00021917,2]
[337392609,1725637251391,-1000.0,0.00021917,2]
[337392611,1725637251452,-1000.0,0.00021917,2]
[337392612,1725637251517,-1000.0,0.00021917,2]
[337392613,1725637251579,-1000.0,0.00021917,2]
[337392614,1725637251642,-1000.0,0.00021917,2]
[337392615,1725637251718,-500.0,0.00021917,2]
[337392617,1725637251782,-1000.0,0.00021917,2]
[337392618,1725637251848,-1000.0,0.00021917,2]
[337392619,1725637251914,-1000.0,0.00021917,2]
[337392621,1725637251982,-1588.35,0.00021917,2]
[337392623,1725637252048,-1000.0,0.00021917,2]
[337392624,1725637252105,-1000.0,0.00021917,2]
[337392625,1725637252162,-1000.0,0.00021917,2]
[337392626,1725637252230,-814.51,0.00021917,2]
[337392628,1725637252287,-1000.0,0.00021917,2]
[337392630,1725637252351,-1000.0,0.00021917,2]
[337392631,1725637252409,-1000.0,0.00021917,2]
[337392632,1725637252468,-1000.0,0.00021917,2]
[337392633,1725637252528,-1000.0,0.00021917,2]
[337392634,1725637252589,-1000.0,0.00021917,2]
[337392635,1725637252648,-680.85,0.00021917,2]
[337392636,1725637252714,-1000.0,0.00021917,2]
[337392637,1725637252779,-1000.0,0.00021917,2]
[337392638,1725637252845,-1000.0,0.00021917,2]
[337392639,1725637252910,-1000.0,0.00021917,2]
[337392640,1725637252975,-1000.0,0.00021917,2]
[337392641,1725637253036,-1000.0,0.00021917,2]
[337392642,1725637253097,-1000.0,0.00021917,2]
[337392643,1725637253159,-1000.0,0.00021917,2]
[337392644,1725637253222,-1000.0,0.00021917,2]
[337392645,1725637253283,-39993.96,0.00021917,2]
[337392646,1725637253346,-1000.0,0.00021917,2]
[337392647,1725637253407,-1000.0,0.00021917,2]
[337392648,1725637253466,-1000.0,0.00021917,2]
[337392649,1725637253524,-1000.0,0.00021917,2]
[337392650,1725637253585,-1000.0,0.00021917,2]
[337392651,1725637253644,-1000.0,0.00021917,2]
[337392652,1725637253711,-500.0,0.00021918,2]
[337392653,1725637253773,-500.0,0.00021918,2]
[337392654,1725637253834,-500.0,0.00021918,2]
[337392655,1725637253894,-500.0,0.00021918,2]
[337392656,1725637253954,-500.0,0.00021918,2]
[337392657,1725637254020,-500.0,0.00021918,2]
[337392658,1725637254082,-500.0,0.00021918,2]
[337392659,1725637254143,-500.0,0.00021918,2]
[337392660,1725637254203,-500.0,0.00021918,2]
[337392661,1725637254267,-500.0,0.00021918,2]
[337392662,1725637254330,-500.0,0.00021918,2]
[337392663,1725637254392,-500.0,0.00021918,2]
[337392664,1725637254460,-500.0,0.00021918,2]
[337392666,1725637254526,-500.0,0.00021918,2]
[337392668,1725637254590,-500.0,0.00021918,2]
[337392669,1725637254653,-500.0,0.00021918,2]
[337392670,1725637254736,-500.0,0.00021918,2]
[337392671,1725637254802,-500.0,0.00021918,2]
[337392672,1725637254869,-500.0,0.00021918,2]
[337392673,1725637254940,-500.0,0.00021918,2]
[337392674,1725637255010,-500.0,0.00021918,2]
[337392675,1725637255074,-500.0,0.00021918,2]
[337392676,1725637255145,-500.0,0.00021918,2]
[337392678,1725637255215,-500.0,0.00021918,2]
[337392679,1725637255281,-500.0,0.00021918,2]
[337392680,1725637255344,-500.0,0.00021918,2]
[337392681,1725637255407,-500.0,0.00021918,2]
[337392682,1725637255468,-500.0,0.00021918,2]
[337392683,1725637255530,-500.0,0.00021918,2]
[337392684,1725637255592,-500.0,0.00021918,2]
[337392685,1725637255655,-223.54966686,0.00021918,2]
[337392686,1725637255728,-500.0,0.00021918,2]
[337392687,1725637255809,-500.0,0.00021918,2]
[337392688,1725637255905,-500.0,0.00021918,2]
[337392689,1725637255981,-2072.65001126,0.00022,2]
[337392690,1725637256049,-1011.55447649,0.00022,2]
[337392691,1725637256115,-276.63,0.00022,2]
[337392692,1725637256181,-1000.0,0.00022,7]
[337392693,1725637256246,-1000.0,0.00022,22]
[337392694,1725637256309,-302.27461649,0.00022,2]
[337392695,1725637256377,-302.30477158,0.00022,2]
[337392696,1725637256436,-839.2,0.00022191,2]
[337392697,1725637256496,-500.0,0.00022191,2]
[337392698,1725637256561,-919.19,0.00022191,2]
[337392699,1725637256621,-500.0,0.00022191,2]
[337392700,1725637256684,-500.0,0.00022191,2]
[337392701,1725637256750,-500.0,0.00022191,2]
[337392702,1725637256817,-449.90019818,0.00022191,2]
[337392703,1725637256882,-500.0,0.00022191,2]
[337392704,1725637256950,-500.0,0.00022191,2]
[337392705,1725637257018,-807.79,0.00022191,2]
[337392706,1725637257084,-151.0,0.00022191,7]
[337392707,1725637257149,-151.0,0.00022191,7]
[337392708,1725637257224,-809.63,0.00022191,2]
[337392709,1725637257289,-500.0,0.00022191,2]
[337392710,1725637257355,-500.0,0.00022191,2]
[337392711,1725637257418,-500.0,0.00022191,2]